bitfinex/quotes_ETHUSD_20230405
["timestamp","ask_amount","ask_price","bid_price","bid_amount"]
[1680722922588,3.90692706,1910.3,1909.9,0.03665]
[1680722922916,3.90692706,1910.3,1910.0,0.01832]
[1680722923276,3.90692706,1910.3,1909.9,0.05497]
[1680722923479,3.90692706,1910.3,1909.9,0.01832]
[1680722923705,3.90692706,1910.3,1910.1,0.48155288]
[1680722924716,3.90692706,1910.3,1909.9,0.01832]
[1680722924717,0.39069271,1910.2,1909.9,0.01832]
[1680722925577,5.80528255,1910.1,1909.7,0.08939404]
[1680722926083,5.80528255,1910.1,1909.7,0.10771404]
[1680722926282,6.47508008,1910.1,1909.7,0.08939404]
[1680722926505,0.5,1910.0,1909.7,0.08939404]
[1680722926719,2.63428255,1910.0,1909.7,0.08939404]
[1680722927127,2.63428255,1910.0,1909.5,0.01832]
[1680722927279,2.81752255,1910.0,1909.4,0.05498]
[1680722927481,0.26342826,1909.9,1909.6,0.01832]
[1680722928082,0.26342826,1909.9,1909.5,0.01832]
[1680722928309,0.26342826,1909.9,1909.6,0.01832]
[1680722929023,0.26342826,1909.9,1909.7,0.01832]
[1680722929224,2.63428255,1910.0,1909.6,0.01832]
[1680722929948,2.63428255,1910.0,1909.7,0.01832]
[1680722930812,0.002,1910.1,1909.8,0.02148491]
[1680722931013,3.171,1910.3,1909.9,0.01832]
[1680722931224,5.80528255,1910.3,1910.0,0.01832]
[1680722931554,0.3171,1910.2,1910.1,0.01832]
[1680722931909,0.3171,1910.2,1910.1,0.05496]
[1680722932355,0.3171,1910.2,1910.1,0.01832]
[1680722933012,0.3171,1910.2,1910.1,0.05496]
[1680722933752,0.002,1910.4,1910.1,0.12825]
[1680722933950,5.80528255,1910.2,1910.0,0.03664]
[1680722934129,5.80528255,1910.1,1910.0,0.03664]
[1680722934336,0.58252826,1910.2,1910.0,0.05496]
[1680722934533,0.5,1910.4,1910.0,0.01832]
[1680722934848,3.671,1910.1,1909.5,0.53459416]
[1680722935051,3.671,1910.1,1909.5,0.01832]
[1680722935052,3.00138255,1910.0,1909.5,0.01832]
[1680722935414,3.00138255,1910.0,1909.3,0.13853212]
[1680722935611,3.00138255,1910.0,1909.3,0.16002266]
[1680722935848,3.00138255,1910.0,1909.4,0.01833]
[1680722936048,3.171,1909.9,1909.3,0.16002266]
[1680722936260,3.171,1909.7,1909.3,0.15086212]
[1680722936453,5.80528255,1909.7,1909.3,0.01833]
[1680722936625,5.80528255,1909.7,1909.1,0.10775213]
[1680722936830,6.38601081,1909.7,1909.1,0.10775213]
[1680722937024,6.38601081,1909.7,1909.1,0.23767545]
[1680722937344,6.56928081,1909.7,1909.1,0.08942213]
[1680722937666,6.56928081,1909.7,1909.0,0.01833]
[1680722937858,0.65692808,1909.6,1909.0,0.01833]
[1680722938021,6.64549063,1909.6,1908.8,0.006]
[1680722938363,6.64549063,1909.6,1908.8,0.01833]
[1680722938364,2.63428255,1909.5,1908.8,0.01833]
[1680722938654,2.81757255,1909.5,1908.8,0.01833]
[1680722939155,0.002,1909.6,1909.1,0.03666]
[1680722939355,3.35427,1909.8,1909.2,0.01833]
[1680722939558,0.3177,1909.7,1909.2,0.01833]
[1680722939720,0.3177,1909.7,1909.1,0.01833]
[1680722939721,0.50097,1909.7,1909.1,0.01833]
[1680722939924,0.50097,1909.7,1909.0,0.03666]
[1680722940128,0.50097,1909.7,1909.1,0.01833]
[1680722941223,0.50697,1909.7,1909.1,0.01833]
[1680722941425,0.86751,1909.7,1909.0,0.01833]
[1680722941658,0.086751,1909.6,1909.0,0.01833]
[1680722941866,0.18328,1909.6,1909.0,0.01833]
[1680722942067,0.006,1910.1,1909.5,4.14328]
[1680722942368,1.37100963,1910.7,1910.0,4.32649]
[1680722942369,0.006,1910.7,1910.0,4.32649]
[1680722942684,0.06199437,1911.0,1910.7,0.01831]
[1680722943252,0.06199437,1911.0,1910.9,0.05494]
[1680722943639,0.06199437,1911.0,1910.9,1.70711625]
[1680722943851,0.06199437,1911.0,1910.9,2.18382788]
[1680722944054,0.06199437,1911.0,1910.9,1.70711625]
[1680722944291,0.06199437,1911.0,1910.9,1.71311625]
[1680722944936,0.06199437,1911.0,1910.9,0.08241256]
[1680722945128,0.06199437,1911.0,1910.9,0.07641256]
[1680722945331,0.06199437,1911.0,1910.9,0.01831]
[1680722946059,0.02199438,1911.1,1910.9,0.02231]
[1680722946262,0.02199438,1911.1,1910.9,0.01831]
[1680722946943,0.02199438,1911.1,1910.8,0.01831]
[1680722947483,0.02199438,1911.1,1910.6,0.03663]
[1680722947634,0.02199438,1911.1,1910.7,3.0]
[1680722947975,0.02199438,1911.1,1910.7,0.01831]
[1680722948276,0.02199438,1911.1,1910.8,0.01831]
[1680722949077,0.02199438,1911.1,1910.9,0.01831]
[1680722949537,0.02199438,1911.1,1910.7,0.03663]
[1680722949732,0.02199438,1911.1,1910.9,0.01831]
[1680722952328,0.02199438,1911.1,1910.9,0.05494]
[1680722953760,2.63428255,1911.0,1910.6,0.003]
[1680722954088,2.63428255,1911.0,1910.4,0.03664]
[1680722954089,2.45242826,1910.9,1910.4,0.03664]
[1680722954295,2.63428255,1910.8,1910.4,0.03664]
[1680722954547,0.5,1910.7,1910.0,0.02432]
[1680722954663,2.89771081,1910.7,1910.0,0.004]
[1680722954870,2.89771081,1910.7,1909.9,0.03665]
[1680722954871,5.26988081,1910.7,1909.9,0.03665]
[1680722955096,0.28977108,1910.6,1909.9,0.03665]
[1680722955261,0.28977108,1910.6,1910.1,0.01832]
[1680722955460,0.28977108,1910.6,1910.0,0.03664]
[1680722955690,0.28977108,1910.6,1910.1,0.01832]
[1680722956019,0.002,1910.8,1910.5,3.183]
[1680722956295,0.11000001,1911.2,1910.5,3.183]
[1680722956296,0.00610351,1911.2,1910.9,1.0]
[1680722956467,0.00610351,1911.2,1911.0,0.1]
[1680722956653,0.00610351,1911.2,1910.8,0.01831]
[1680722956859,0.00610351,1911.2,1910.7,0.006]
[1680722957053,0.00610351,1911.2,1910.8,0.01831]
[1680722957250,0.00610351,1911.2,1910.9,0.01831]
[1680722957510,0.00610351,1911.2,1910.8,0.02431]
[1680722957796,0.00610351,1911.2,1910.8,0.01831]
[1680722958008,0.00610351,1911.2,1910.9,0.01831]
[1680722958308,0.00610351,1911.2,1911.0,0.01831]
[1680722958497,11.18491386,1911.2,1910.6,0.05810592]
[1680722958657,11.18491386,1911.2,1910.8,0.01831]
[1680722958852,11.18491386,1911.2,1910.9,0.01831]
[1680722959306,1.11849139,1911.1,1910.6,0.01831]
[1680722959723,1.11849139,1911.1,1910.9,0.01831]
[1680722959910,10.86920351,1911.2,1910.9,0.01831]
[1680722960083,13.50148606,1911.2,1910.9,0.01831]
[1680722960588,5.80528255,1911.1,1910.5,0.07327]
[1680722960810,7.15543116,1911.1,1910.7,0.01831]
[1680722961012,7.15543116,1911.1,1910.8,0.01831]
[1680722961321,3.88654312,1911.0,1910.8,0.01831]
[1680722961502,6.52082567,1911.0,1910.8,0.01831]
[1680722961688,0.71554312,1911.0,1910.8,0.01831]
[1680722961893,1.35214861,1911.1,1910.9,0.01831]
[1680722961894,1.35014861,1911.1,1910.9,0.01831]
[1680722962100,1.35014861,1911.1,1910.7,0.03663]
[1680722962301,2.63428255,1911.0,1910.5,0.07327]
[1680722962525,0.13501486,1911.0,1910.7,0.03663]
[1680722962726,0.13501486,1911.0,1910.5,0.03663]
[1680722963088,0.13501486,1911.0,1910.4,0.01831]
[1680722963328,0.13501486,1911.0,1910.5,0.03663]
[1680722963526,0.13501486,1911.0,1910.7,0.01831]
[1680722963836,2.63428255,1910.9,1910.6,0.01831]
[1680722964136,0.26342826,1910.8,1910.6,0.01831]
[1680722964757,0.13701486,1911.0,1910.6,0.02147592]
[1680722964953,0.13501486,1911.0,1910.6,0.03978592]
[1680722965249,5.80528255,1910.9,1910.5,0.01831]
[1680722965464,2.63428255,1910.9,1910.5,0.03663]
[1680722965759,2.63428255,1910.9,1910.5,0.01831]
[1680722965906,5.80528255,1910.9,1910.5,0.01831]
[1680722966104,5.81128255,1910.9,1910.5,0.01831]
[1680722966300,0.58112826,1910.8,1910.4,0.02147818]
[1680722966650,0.58112826,1910.8,1910.3,0.01832]
[1680722967160,0.58112826,1910.8,1910.0,3.20699437]
[1680722967161,5.80528255,1910.7,1910.0,3.20699437]
[1680722967449,2.69839538,1910.7,1910.2,0.03664]
[1680722967800,11.8256,1910.6,1910.2,0.05496]
[1680722968004,1.18256,1910.5,1909.9,0.03664]
[1680722968311,1.18256,1910.5,1910.1,0.01832]
[1680722968525,1.18256,1910.5,1910.0,0.01832]
[1680722969950,1.18256,1910.5,1910.1,0.01832]
[1680722970279,11.8336,1910.6,1909.9,0.02148379]
[1680722970449,11.8316,1910.6,1910.2,0.05496]
[1680722970631,0.006,1910.6,1910.2,0.07644041]
[1680722970828,11.2825,1910.9,1910.5,0.01831]
[1680722971078,11.2885,1910.9,1910.5,0.01831]
[1680722971237,11.2885,1910.9,1910.4,0.03664]
[1680722971238,1.12825,1910.8,1910.4,0.03664]
[1680722971437,11.2905,1910.9,1910.6,0.01831]
[1680722971633,11.2885,1910.9,1910.6,0.01831]
[1680722971868,11.2885,1910.9,1910.7,0.01831]
[1680722972069,11.2885,1910.9,1910.8,0.01831]
[1680722972447,0.008,1911.0,1910.8,0.01831]
[1680722972662,3.17710351,1911.2,1910.7,0.01831]
[1680722972866,2.63428255,1911.1,1910.7,0.01831]
[1680722973035,2.64028255,1911.1,1910.8,0.01831]
[1680722973240,2.64028255,1911.1,1910.6,0.03663]
[1680722973442,2.64028255,1911.1,1910.7,0.01831]
[1680722973663,3.25399219,1911.1,1910.7,0.01831]
[1680722974979,3.25399219,1911.1,1910.8,0.01831]
[1680722975386,3.25399219,1911.1,1910.7,0.01831]
[1680722977051,3.25399219,1911.1,1910.6,0.01831]
[1680722977274,3.25399219,1911.1,1910.7,0.01831]
[1680722977804,3.25399219,1911.1,1910.5,0.05810704]
[1680722978011,0.32539922,1911.0,1910.5,0.02147704]
[1680722978225,2.63428255,1910.9,1910.5,0.03978704]
[1680722978418,5.99443255,1910.9,1910.2,3.01832]
[1680722978717,0.26342826,1910.8,1910.1,0.03664]
[1680722979012,6.06871081,1910.8,1910.3,0.01832]
[1680722979175,6.06871081,1910.8,1910.1,0.03664]
[1680722979176,3.171,1910.6,1910.2,0.01832]
[1680722979366,5.80528255,1910.6,1910.2,0.01832]
[1680722979770,5.80528255,1910.6,1910.1,0.01832]
[1680722979969,11.66357108,1910.7,1910.2,0.05496]
[1680722980279,13.68898255,1910.7,1910.4,0.01832]
[1680722980816,13.68898255,1910.7,1910.2,0.03664]
[1680722981026,7.17418081,1910.6,1909.7,4.9715]
[1680722981166,7.17418081,1910.6,1909.7,0.01832]
[1680722981167,3.171,1910.4,1909.7,0.01832]
[1680722981367,2.63428255,1910.3,1909.7,0.03665]
[1680722981696,2.63428255,1910.3,1909.8,0.01832]
[1680722982203,2.63428255,1910.3,1909.7,0.03665]
[1680722982389,0.26342826,1910.2,1909.7,0.01832]
[1680722982792,0.26342826,1910.2,1909.6,0.03665]
[1680722982996,0.26342826,1910.2,1909.7,0.01832]
[1680722983403,0.26342826,1910.2,1909.8,0.01832]
[1680722983611,0.26342826,1910.2,1909.7,0.01832]
[1680722983924,0.26342826,1910.2,1909.9,0.08938468]
[1680722984088,5.80528255,1910.1,1909.9,0.08938468]
[1680722984271,5.80528255,1910.1,1909.5,0.0894034]
[1680722984272,4.30125826,1910.0,1909.5,0.0894034]
[1680722984472,3.171,1909.8,1909.5,0.0894034]
[1680722984714,5.80528255,1909.8,1909.5,0.0894034]
[1680722984920,0.58052826,1909.7,1909.5,0.0894034]
[1680722986125,0.58052826,1909.7,1909.5,0.1077234]
[1680722986335,5.80528255,1909.8,1909.5,0.2176834]
[1680722986336,0.006,1909.8,1909.5,0.2176834]
[1680722986536,3.177,1910.0,1909.6,0.05497]
[1680722986736,7.85951538,1910.0,1909.8,0.01832]
[1680722987169,7.85951538,1910.0,1909.9,0.01832]
[1680722988047,11.8395,1910.1,1909.5,0.0894034]
[1680722988357,5.80528255,1910.0,1909.5,0.0894034]
[1680722988561,3.171,1909.8,1909.5,0.0894034]
[1680722988856,5.80528255,1909.8,1909.5,0.0894034]
[1680722989056,1.08052826,1909.7,1909.5,0.0894034]
[1680722989243,0.002,1909.8,1909.5,0.1077234]
[1680722989425,3.171,1910.0,1909.6,0.08939872]
[1680722989620,0.3171,1909.9,1909.6,0.08939872]
[1680722989861,0.50035,1909.9,1909.6,0.08939872]
[1680722990161,0.3171,1909.9,1909.6,0.08939872]
[1680722991052,0.3171,1909.9,1909.6,0.12604872]
[1680722991248,2.64028255,1910.0,1909.7,0.08939404]
[1680722991249,0.006,1910.0,1909.7,0.08939404]
[1680722991574,2.63428255,1910.0,1909.7,0.08939404]
[1680722991725,0.26342826,1909.9,1909.7,0.10771404]
[1680722991925,2.64028255,1910.0,1909.8,0.10770936]
[1680722992151,2.64028255,1910.0,1909.8,0.08938936]
[1680722992958,2.63428255,1910.0,1909.8,0.10770936]
[1680722993260,2.64028255,1910.0,1909.9,0.01832]
[1680722993559,2.63428255,1910.0,1909.9,0.01832]
[1680722994059,2.64028255,1910.0,1909.9,0.01832]
[1680722994247,11.8395,1910.1,1909.9,0.05497]
[1680722994448,11.8375,1910.1,1909.8,0.10770936]
[1680722994758,11.8375,1910.1,1909.8,0.08938936]
[1680722995265,11.8315,1910.1,1909.9,0.05497]
[1680722995569,11.8315,1910.1,1909.9,0.01832]
[1680722996154,11.8315,1910.1,1909.8,0.08938936]
[1680722996493,18.82073255,1910.1,1909.9,0.01832]
[1680722996692,15.64973255,1910.1,1909.9,0.01832]
[1680722997480,14.47178255,1910.1,1909.8,0.10770936]
[1680722997683,17.63678255,1910.1,1909.8,0.10770936]
[1680722997892,17.64278255,1910.1,1909.8,0.10770936]
[1680722998046,17.63678255,1910.1,1909.9,0.01832]
[1680722998249,14.46578255,1910.1,1909.9,0.01832]
[1680722998879,14.46578255,1910.1,1909.9,0.05497]
[1680722998880,11.8315,1910.1,1909.9,0.05497]
[1680722999196,11.8315,1910.1,1909.9,0.01832]
[1680722999495,11.8315,1910.1,1909.9,0.05497]
[1680722999979,11.8315,1910.1,1909.9,0.12827]
[1680723000557,11.8315,1910.1,1909.9,0.31152]
[1680723000893,11.8375,1910.1,1909.9,0.33300379]
[1680723001095,0.006,1910.1,1909.9,0.33300379]
[1680723001250,10.9573,1910.5,1909.9,0.33300379]
[1680723001457,13.59358255,1910.5,1910.2,0.01832]
[1680723005204,5.80528255,1910.4,1909.8,0.08938936]
[1680723005364,5.81128255,1910.4,1910.1,0.01832]
[1680723005563,5.80528255,1910.4,1910.1,0.01832]
[1680723005892,0.58052826,1910.3,1910.1,0.01832]
[1680723006190,2.63428255,1910.3,1910.1,0.01832]
[1680723006753,0.008,1910.4,1910.2,0.01832]
[1680723007081,10.9593,1910.5,1910.2,0.05496]
[1680723007670,10.9573,1910.5,1910.2,0.05496]
[1680723007987,10.9533,1910.5,1910.2,0.05496]
[1680723008167,10.9593,1910.5,1910.2,0.05496]
[1680723008368,10.9593,1910.5,1909.8,3.08938936]
[1680723008369,2.63428255,1910.4,1909.8,3.08938936]
[1680723008601,5.80528255,1910.4,1909.9,3.0]
[1680723008803,5.81128255,1910.4,1909.8,0.10770936]
[1680723008958,5.98848255,1910.4,1909.8,0.10770936]
[1680723009570,7.25717894,1910.4,1909.8,0.08938936]
[1680723009909,7.25717894,1910.4,1909.9,0.01832]
[1680723010074,7.25717894,1910.4,1909.8,0.10770936]
[1680723010272,7.26317894,1910.4,1909.9,0.01832]
[1680723010791,0.72631789,1910.3,1909.8,0.12603936]
[1680723011010,5.80528255,1910.2,1909.9,0.01832]
[1680723011190,3.171,1910.0,1909.8,0.08938936]
[1680723011508,17.41008255,1909.9,1909.8,0.08938936]
[1680723011991,17.64008255,1909.9,1909.8,0.08938936]
[1680723012194,19.4048908,1909.9,1909.8,0.08938936]
[1680723013218,19.4048908,1909.9,1909.5,0.01832]
[1680723013390,0.23,1909.8,1909.4,0.03666]
[1680723013587,3.171,1909.6,1909.5,0.01832]
[1680723014212,5.80528255,1909.6,1909.4,0.01832]
[1680723014361,2.63428255,1909.5,1909.2,0.10998]
[1680723014559,2.63428255,1909.5,1909.1,0.08942213]
[1680723015192,5.80528255,1909.5,1909.1,0.08942213]
[1680723015449,6.44408363,1909.5,1909.1,0.08942213]
[1680723015809,3.671,1909.4,1909.1,0.08942213]
[1680723016143,2.63428255,1909.3,1908.7,0.01833]
[1680723016296,3.171,1909.2,1908.5,0.08945025]
[1680723016490,5.80528255,1909.2,1908.5,0.12612025]
[1680723016744,0.23,1909.1,1908.5,0.08945025]
[1680723016906,5.80528255,1909.0,1908.5,0.08945025]
[1680723017106,5.98862255,1909.0,1908.5,0.08945025]
[1680723017308,0.23,1908.9,1908.5,0.08945025]
[1680723017508,3.171,1908.7,1908.5,0.08945025]
[1680723017809,5.80528255,1908.7,1908.5,0.08945025]
[1680723018145,7.70710681,1908.7,1908.5,0.08945025]
[1680723018796,5.80528255,1908.6,1908.1,0.1]
[1680723018994,6.35542255,1908.6,1908.1,0.1]
[1680723019297,6.66287023,1908.6,1908.1,0.1]
[1680723019719,6.84625023,1908.6,1908.1,0.1]
[1680723020614,6.66287023,1908.6,1908.1,0.1]
[1680723020814,6.66287023,1908.6,1908.1,0.11834]
[1680723021118,5.80528255,1908.6,1908.1,0.11834]
[1680723021915,5.80528255,1908.6,1908.1,0.1]
[1680723022129,5.80528255,1908.6,1908.1,0.11834]
[1680723023244,0.002,1908.7,1908.1,0.81402]
[1680723023442,11.1939,1908.8,1908.3,0.01834]
[1680723024315,11.1939,1908.8,1908.3,0.05502]
[1680723024518,0.008,1908.9,1908.4,0.659]
[1680723024842,0.18333,1909.1,1908.5,0.7249]
[1680723025016,0.18333,1909.1,1908.5,0.08423]
[1680723025339,14.28893,1909.2,1908.5,0.01833]
[1680723025539,16.92321255,1909.2,1908.6,0.01833]
[1680723026517,14.28893,1909.2,1908.6,0.01833]
[1680723026719,10.9346,1909.2,1908.9,0.055]
[1680723027044,0.002,1909.3,1908.9,0.055]
[1680723027257,3.171,1909.6,1908.9,0.055]
[1680723027411,0.006,1909.6,1909.1,0.69566]
[1680723027743,11.0216,1909.7,1909.5,0.01832]
[1680723027744,0.006,1909.7,1909.5,0.01832]
[1680723027942,11.70284,1910.0,1909.4,0.01832]
[1680723028106,14.53689555,1910.0,1909.5,0.01832]
[1680723028308,14.53689555,1910.0,1909.4,0.03666]
[1680723028309,14.72013555,1910.0,1909.4,0.01832]
[1680723028654,14.72013555,1910.0,1909.4,0.01833]
[1680723028957,14.53689555,1910.0,1909.3,0.03666]
[1680723029111,13.65988255,1910.0,1909.4,0.659]
[1680723029457,11.0256,1910.0,1909.7,0.05497]
[1680723029626,11.0256,1910.0,1909.6,0.03665]
[1680723029846,11.0256,1910.0,1909.8,0.01832]
[1680723030174,11.0196,1910.0,1909.9,0.01832]
[1680723030346,11.0256,1910.0,1909.9,0.01832]
[1680723031263,11.0196,1910.0,1909.9,0.01832]
[1680723031659,11.0196,1910.0,1909.9,0.05497]
[1680723031861,11.0196,1910.0,1909.9,0.12827]
[1680723032662,11.0196,1910.0,1909.9,0.05497]
[1680723033071,11.0256,1910.0,1909.9,0.05497]
[1680723033439,11.0196,1910.0,1909.9,0.05497]
[1680723034039,11.0256,1910.0,1909.9,0.05497]
[1680723034284,11.0196,1910.0,1909.9,0.01832]
[1680723034980,11.0256,1910.0,1909.9,0.01832]
[1680723035382,11.0196,1910.0,1909.9,0.01832]
[1680723035795,0.008,1910.1,1909.9,0.05497]
[1680723035944,0.006,1910.3,1909.9,0.05497]
[1680723036145,3.177,1910.4,1910.2,0.01832]
[1680723036346,3.177,1910.4,1910.1,0.01832]
[1680723036558,5.04307,1910.4,1910.1,0.01832]
[1680723037082,1.87207,1910.4,1909.9,0.02148379]
[1680723037294,0.006,1910.4,1910.2,0.05496]
[1680723038737,4.5181,1910.8,1910.2,0.05496]
[1680723039022,2.64028255,1910.8,1910.4,0.01831]
[1680723039174,2.64028255,1910.8,1910.3,0.03664]
[1680723039376,2.64028255,1910.8,1910.4,0.01832]
[1680723039728,2.64028255,1910.8,1910.5,0.01831]
[1680723040286,4.41611081,1910.8,1910.7,0.01831]
[1680723041804,4.41011081,1910.8,1910.7,0.01831]
[1680723042123,4.41611081,1910.8,1910.7,0.05494]
[1680723043313,2.64028255,1910.8,1910.7,0.05494]
[1680723043621,2.64028255,1910.8,1910.7,0.12821]
[1680723044673,2.64028255,1910.8,1910.4,0.03664]
[1680723044911,2.64028255,1910.8,1910.6,0.01831]
[1680723044912,2.60308255,1910.8,1910.6,0.01831]
[1680723045097,2.60308255,1910.8,1910.4,0.03664]
[1680723045306,2.60308255,1910.8,1910.5,0.01831]
[1680723045678,2.60308255,1910.8,1910.6,0.01831]
[1680723045898,2.60308255,1910.8,1910.5,0.01831]
[1680723046615,2.60308255,1910.8,1910.6,0.01831]
[1680723046791,2.60308255,1910.8,1910.5,0.01831]
[1680723047517,0.654,1910.6,1910.2,0.006]
[1680723047715,3.28828255,1910.6,1909.9,0.03664]
[1680723048023,3.28828255,1910.6,1909.9,0.01832]
[1680723048024,3.53687255,1910.6,1909.9,0.01832]
[1680723048412,5.80528255,1910.5,1909.9,0.03980379]
[1680723048610,0.58052826,1910.4,1909.9,0.03980379]
[1680723048930,3.21481081,1910.4,1909.9,0.03980379]
[1680723049293,3.21481081,1910.4,1909.9,0.02148379]
[1680723049294,3.39802081,1910.4,1909.9,0.02148379]
[1680723049697,15.32112081,1910.4,1909.9,0.02148379]
[1680723050097,4.16639463,1910.3,1909.8,0.01832]
[1680723050293,4.34960463,1910.3,1909.7,0.01832]
[1680723050740,0.43496046,1910.2,1909.6,0.01832]
[1680723051045,0.61818046,1910.2,1909.6,0.01832]
[1680723051401,0.61818046,1910.2,1909.5,0.02432]
[1680723052027,3.25246301,1910.2,1909.6,0.01832]
[1680723053970,0.3252463,1910.1,1909.6,0.01832]
[1680723054332,0.5084763,1910.1,1909.6,0.01832]
[1680723054543,0.5084763,1910.1,1909.5,0.0824583]
[1680723054866,0.5084763,1910.1,1909.6,0.01832]
[1680723055373,2.81750255,1910.2,1909.7,0.01832]
[1680723055528,2.81750255,1910.2,1909.5,0.0641383]
[1680723055529,2.63428255,1910.2,1909.5,0.0641383]
[1680723055729,2.63428255,1910.2,1909.7,0.01832]
[1680723056426,2.63428255,1910.2,1909.6,0.03665]
[1680723056672,2.63428255,1910.2,1909.7,0.01832]
[1680723057058,2.63428255,1910.2,1909.8,0.01832]
[1680723057254,0.002,1910.3,1909.8,0.03665]
[1680723057460,12.10631,1910.4,1909.8,0.01832]
[1680723057654,12.10631,1910.4,1909.7,0.03665]
[1680723057655,14.55738255,1910.4,1909.7,0.03665]
[1680723057975,14.74058255,1910.4,1909.8,0.01832]
[1680723058145,14.55738255,1910.4,1909.9,0.01832]
[1680723058573,0.18321,1910.3,1909.7,0.01832]
[1680723058934,0.18321,1910.3,1909.7,0.067732]
[1680723058935,5.98849255,1910.3,1909.7,0.067732]
[1680723059274,5.80528255,1910.3,1909.9,0.01832]
[1680723059443,15.27931,1910.4,1909.8,0.01832]
[1680723059763,17.72838255,1910.4,1909.9,0.01832]
[1680723060627,17.72838255,1910.4,1910.0,0.01832]
[1680723060979,17.72838255,1910.4,1910.1,0.01832]
[1680723062096,17.72838255,1910.4,1910.0,0.01832]
[1680723062620,17.72838255,1910.4,1910.1,0.01832]
[1680723062928,17.72838255,1910.4,1910.0,0.01832]
[1680723064031,15.0941,1910.4,1910.0,0.03664]
[1680723064385,15.1001,1910.4,1910.1,0.01832]
[1680723064725,11.9291,1910.4,1910.0,0.03664]
[1680723064894,11.9291,1910.4,1910.2,0.01832]
[1680723065288,11.9231,1910.4,1910.1,0.01832]
[1680723065488,11.9231,1910.4,1910.2,0.01832]
[1680723066237,11.9231,1910.4,1910.1,0.01832]
[1680723066429,11.9231,1910.4,1910.2,0.01832]
[1680723067291,8.990766,1910.4,1910.2,0.01832]
[1680723067918,8.990766,1910.4,1910.1,0.05496]
[1680723068138,8.990766,1910.4,1910.0,0.03664]
[1680723068530,8.990766,1910.4,1910.1,0.01832]
[1680723068726,8.990766,1910.4,1909.8,0.06413491]
[1680723068944,8.990766,1910.4,1910.0,0.01832]
[1680723069151,2.63428255,1910.3,1910.0,0.01832]
[1680723069354,0.26342826,1910.2,1909.6,0.002]
[1680723069649,0.5,1910.1,1909.5,0.01832]
[1680723069849,1.46077808,1910.1,1909.4,0.03666]
[1680723070051,1.27753808,1910.1,1909.6,0.01832]
[1680723070553,1.46076808,1910.1,1909.5,0.01832]
[1680723070709,1.46076808,1910.1,1909.4,0.01832]
[1680723070710,0.31099381,1910.0,1909.4,0.01832]
[1680723071148,0.31099381,1910.0,1909.3,0.01833]
[1680723071149,3.31176636,1910.0,1909.3,0.01833]
[1680723071461,0.33117664,1909.9,1909.3,0.006]
[1680723071638,3.171,1909.8,1909.2,0.006]
[1680723071953,4.32937,1909.7,1909.1,0.01833]
[1680723072152,3.67137,1909.7,1909.0,0.11375682]
[1680723072458,3.25049955,1909.6,1909.0,0.09542682]
[1680723072750,7.44505955,1909.6,1909.0,0.09542682]
[1680723072952,3.829,1909.4,1909.0,0.08942682]
[1680723073152,7.01322255,1909.3,1908.5,0.02433]
[1680723073856,6.46328255,1909.3,1908.5,0.006]
[1680723074158,3.87232226,1909.2,1908.7,0.01833]
[1680723074370,2.63428255,1909.1,1908.5,0.02749955]
[1680723074512,3.20484478,1909.1,1908.5,0.04582955]
[1680723074851,3.02151478,1909.1,1908.5,0.04582955]
[1680723075060,3.20484478,1909.1,1908.5,0.04582955]
[1680723075461,3.20484478,1909.1,1908.5,0.02749955]
[1680723075659,3.20484478,1909.1,1908.5,0.33574951]
[1680723076433,3.57150478,1909.1,1908.5,0.02749955]
[1680723076636,3.171,1909.0,1908.5,0.04582955]
[1680723076951,2.63428255,1908.9,1908.5,0.03982955]
[1680723078798,5.98863255,1908.9,1908.4,0.004]
[1680723079002,7.01333255,1908.9,1908.3,0.006]
[1680723079180,7.01333255,1908.9,1908.2,0.443084]
[1680723079181,3.76986326,1908.8,1908.2,0.443084]
[1680723079377,2.63428255,1908.7,1908.2,0.443084]
[1680723079676,6.64740313,1908.7,1908.2,0.424744]
[1680723079900,6.46403313,1908.7,1908.2,0.443084]
[1680723080102,6.46403313,1908.7,1908.2,0.437084]
[1680723080290,7.01414313,1908.7,1908.2,0.418744]
[1680723080490,3.826,1908.4,1908.2,0.418744]
[1680723080690,5.80528255,1908.3,1908.2,0.418744]
[1680723081021,0.657,1908.4,1908.2,0.418744]
[1680723081238,0.18339,1908.5,1908.2,0.418744]
[1680723081388,2.71726088,1908.5,1908.2,0.418744]
[1680723082569,0.002,1908.6,1908.2,0.418744]
[1680723082673,0.002,1908.8,1908.2,0.473764]
[1680723082878,2.63428255,1908.8,1908.2,0.473764]
[1680723083192,2.63428255,1908.8,1908.2,0.5311404]
[1680723083512,2.63428255,1908.8,1908.2,0.55864334]
[1680723085325,2.63428255,1908.8,1908.2,0.13989934]
[1680723085529,2.63428255,1908.8,1908.2,0.04584294]
[1680723085995,2.63428255,1908.8,1908.2,0.08252294]
[1680723089229,2.63428255,1908.8,1908.2,0.07652294]
[1680723089389,2.63428255,1908.8,1908.2,0.08252294]
[1680723090432,5.80528255,1908.7,1908.2,0.006]
[1680723090758,0.18338,1908.6,1908.2,0.006]
[1680723090956,2.63428255,1908.5,1908.1,0.11834]
[1680723091315,2.63428255,1908.5,1908.1,0.106]
[1680723091512,2.63428255,1908.5,1908.1,0.1]
[1680723091750,0.002,1908.6,1908.1,0.48402]
[1680723091948,3.171,1908.8,1908.3,0.05502]
[1680723092174,5.80528255,1908.8,1908.3,0.05502]
[1680723092519,5.80528255,1908.8,1908.3,0.01834]
[1680723093316,2.63428255,1908.7,1908.2,0.01834]
[1680723093751,3.20995973,1908.7,1908.1,0.184679]
[1680723094063,3.20995973,1908.7,1908.1,0.190679]
[1680723095041,3.02658973,1908.7,1908.1,0.227359]
[1680723095544,3.02658973,1908.7,1908.1,0.24886306]
[1680723095748,3.02658973,1908.7,1908.1,0.18252406]
[1680723095952,3.20995973,1908.7,1908.1,0.18252406]
[1680723096271,3.171,1908.6,1908.1,0.14584406]
[1680723096425,3.171,1908.4,1908.1,0.12434]
[1680723096619,2.96028255,1908.5,1908.1,0.106]
[1680723096620,5.80528255,1908.3,1908.1,0.106]